[Event "Championnat d'Europe de Blitz"]
[Date "2024.12.09"]
[White "Goraj, Barbara"]
[Black "Mastrovasilis, Dimitrios"]
[WhiteElo "2178"]
[BlackElo "2537"]
[Round "8.33"]
[Result "1/2-1/2"]
[TimeControl "180+2"]

1. e4 {[%emt 00:00:02] [%clk 00:03:02]} c5 {[%emt 00:00:01] [%clk 00:03:03]} 2.
Nf3 {[%emt 00:00:02] [%clk 00:03:02]} e6 {[%emt 00:00:02] [%clk 00:03:03]} 3. d4
{[%emt 00:00:02] [%clk 00:03:02]} cxd4 {[%emt 00:00:02] [%clk 00:03:03]} 4. Nxd4
{[%emt 00:00:02] [%clk 00:03:02]} a6 {[%emt 00:00:02] [%clk 00:03:04]} 5. Bd3
{[%emt 00:00:02] [%clk 00:03:02]} g6 {[%emt 00:00:02] [%clk 00:03:04]} 6. O-O
{[%emt 00:00:08] [%clk 00:02:56]} Bg7 {[%emt 00:00:02] [%clk 00:03:03]} 7. Be3
{[%emt 00:00:03] [%clk 00:02:55]} Nc6 {[%emt 00:00:16] [%clk 00:02:49]} 8. Nxc6
{[%emt 00:00:07] [%clk 00:02:50]} bxc6 {[%emt 00:00:02] [%clk 00:02:49]} 9. c3
{[%emt 00:00:05] [%clk 00:02:47]} Ne7 {[%emt 00:00:05] [%clk 00:02:46]} 10. f4
{[%emt 00:00:12] [%clk 00:02:37]} d5 {[%emt 00:00:04] [%clk 00:02:44]} 11. e5
{[%emt 00:00:04] [%clk 00:02:35]} O-O {[%emt 00:00:04] [%clk 00:02:41]} 12. Nd2
{[%emt 00:00:04] [%clk 00:02:33]} a5 {[%emt 00:00:02] [%clk 00:02:42]} 13. Qe2
{[%emt 00:00:19] [%clk 00:02:15]} a4 {[%emt 00:00:11] [%clk 00:02:33]} 14. b3
{[%emt 00:00:07] [%clk 00:02:10]} axb3 {[%emt 00:00:27] [%clk 00:02:08]} 15.
axb3 {[%emt 00:00:06] [%clk 00:02:06]} Bb7 {[%emt 00:00:04] [%clk 00:02:06]} 16.
b4 {[%emt 00:00:07] [%clk 00:02:02]} Nf5 {[%emt 00:00:11] [%clk 00:01:57]} 17.
Bxf5 {[%emt 00:00:11] [%clk 00:01:53]} exf5 {[%emt 00:00:02] [%clk 00:01:57]}
18. Nb3 {[%emt 00:00:05] [%clk 00:01:50]} Qc7 {[%emt 00:00:16] [%clk 00:01:43]}
19. Nc5 {[%emt 00:00:27] [%clk 00:01:25]} Rfb8 {[%emt 00:00:02] [%clk 00:01:44]}
20. Bd4 {[%emt 00:00:05] [%clk 00:01:21]} Bc8 {[%emt 00:00:02] [%clk 00:01:44]}
21. Qb2 {[%emt 00:00:04] [%clk 00:01:19]} h5 {[%emt 00:00:32] [%clk 00:01:13]}
22. g3 {[%emt 00:00:04] [%clk 00:01:17]} h4 {[%emt 00:00:11] [%clk 00:01:04]}
23. Rxa8 {[%emt 00:00:02] [%clk 00:01:17]} Rxa8 {[%emt 00:00:01] [%clk
00:01:05]} 24. Ra1 {[%emt 00:00:02] [%clk 00:01:17]} Qb8 {[%emt 00:00:17] [%clk
00:00:50]} 25. Ra3 {[%emt 00:00:02] [%clk 00:01:17]} Kh7 {[%emt 00:00:05] [%clk
00:00:47]} 26. Qa2 {[%emt 00:00:06] [%clk 00:01:13]} Rxa3 {[%emt 00:00:02] [%clk
00:00:48]} 27. Qxa3 {[%clk 00:01:13]} Qb5 {[%emt 00:00:01] [%clk 00:00:49]} 28.
Kf2 {[%emt 00:00:07] [%clk 00:01:08]} h3 {[%emt 00:00:15] [%clk 00:00:36]} 29.
Qa7 {[%emt 00:00:18] [%clk 00:00:52]} Qc4 {[%emt 00:00:08] [%clk 00:00:30]} 30.
Qxf7 {[%emt 00:00:40] [%clk 00:00:14]} Qa2+ {[%emt 00:00:01] [%clk 00:00:31]}
31. Ke3 {[%emt 00:00:03] [%clk 00:00:13]} Qxh2 {[%emt 00:00:10] [%clk 00:00:22]}
32. e6 {[%emt 00:00:02] [%clk 00:00:14]} Qg1+ {[%emt 00:00:09] [%clk 00:00:15]}
33. Ke2 {[%emt 00:00:04] [%clk 00:00:12]} Qg2+ {[%emt 00:00:06] [%clk 00:00:12]}
34. Kd1 {[%emt 00:00:09] [%clk 00:00:05]} Qf1+ {[%emt 00:00:02] [%clk 00:00:11]}
35. Kc2 {[%emt 00:00:02] [%clk 00:00:06]} Qe2+ {[%emt 00:00:02] [%clk 00:00:11]}
36. Kb3 {[%emt 00:00:03] [%clk 00:00:05]} Qc4+ {[%emt 00:00:02] [%clk 00:00:11]}
37. Kb2 {[%emt 00:00:02] [%clk 00:00:06]} Qxd4 {[%emt 00:00:03] [%clk 00:00:10]}
38. cxd4 {[%emt 00:00:01] [%clk 00:00:06]} h2 {[%clk 00:00:12]} 39. e7 {[%emt
00:00:02] [%clk 00:00:06]} h1=Q {[%emt 00:00:02] [%clk 00:00:12]} 40. e8=Q
{[%emt 00:00:03] [%clk 00:00:06]} Qg2+ {[%emt 00:00:03] [%clk 00:00:10]} 41. Ka3
{[%emt 00:00:02] [%clk 00:00:06]} Qxg3+ {[%emt 00:00:06] [%clk 00:00:06]} 42.
Ka4 {[%emt 00:00:01] [%clk 00:00:07]} Ba6 {[%emt 00:00:05] [%clk 00:00:03]} 43.
Nxa6 {[%emt 00:00:02] [%clk 00:00:07]} Kh6 {[%emt 00:00:01] [%clk 00:00:04]} 44.
Nc5 {[%emt 00:00:03] [%clk 00:00:06]} Qg1 {[%clk 00:00:05]} 45. Ne6 {[%emt
00:00:03] [%clk 00:00:05]} Qa1+ {[%emt 00:00:01] [%clk 00:00:06]} 46. Kb3 {[%emt
00:00:01] [%clk 00:00:06]} Qb1+ {[%emt 00:00:01] [%clk 00:00:06]} 47. Kc3 {[%emt
00:00:02] [%clk 00:00:05]} Qc1+ {[%emt 00:00:04] [%clk 00:00:05]} 48. Kb3 {[%emt
00:00:01] [%clk 00:00:06]} Qb1+ {[%emt 00:00:03] [%clk 00:00:04]} 49. Kc3 {[%clk
00:00:07]} Qc1+ {[%emt 00:00:02] [%clk 00:00:04]} 50. Kb3 {[%clk 00:00:08]} Qb1+
{[%emt 00:00:02] [%clk 00:00:00]} 1/2-1/2

[Site "Europe Echecs"]

[Event "Championnat d'Europe de Blitz"]
[Date "2024.12.09"]
[White "Navara, David"]
[Black "Upleger, Martin"]
[WhiteElo "2665"]
[BlackElo "2297"]
[Round "8.34"]
[Result "1-0"]
[TimeControl "180+2"]

1. e4 {[%clk 00:03:03]} c5 {[%emt 00:00:01] [%clk 00:03:03]} 2. Nf3 {[%clk
00:03:04]} d6 {[%clk 00:03:04]} 3. d4 {[%emt 00:00:01] [%clk 00:03:05]} cxd4
{[%clk 00:03:05]} 4. Nxd4 {[%emt 00:00:02] [%clk 00:03:06]} Nf6 {[%clk
00:03:06]} 5. Nc3 {[%emt 00:00:01] [%clk 00:03:07]} a6 {[%clk 00:03:07]} 6. g3
{[%emt 00:00:02] [%clk 00:03:07]} e5 {[%emt 00:00:05] [%clk 00:03:04]} 7. Nde2
{[%emt 00:00:01] [%clk 00:03:07]} Be7 {[%emt 00:00:09] [%clk 00:02:57]} 8. Bg2
{[%emt 00:00:03] [%clk 00:03:06]} Nbd7 {[%emt 00:00:09] [%clk 00:02:51]} 9. a4
{[%emt 00:00:03] [%clk 00:03:05]} b6 {[%emt 00:00:10] [%clk 00:02:43]} 10. Nd5
{[%emt 00:00:08] [%clk 00:02:59]} Nxd5 {[%emt 00:00:11] [%clk 00:02:34]} 11.
Qxd5 {[%emt 00:00:02] [%clk 00:02:59]} Rb8 {[%emt 00:00:01] [%clk 00:02:35]} 12.
Nc3 {[%emt 00:00:10] [%clk 00:02:51]} O-O {[%emt 00:00:03] [%clk 00:02:33]} 13.
O-O {[%emt 00:00:04] [%clk 00:02:49]} Qc7 {[%emt 00:00:05] [%clk 00:02:31]} 14.
Be3 {[%emt 00:00:14] [%clk 00:02:37]} h6 {[%emt 00:00:06] [%clk 00:02:27]} 15.
Qd2 {[%emt 00:00:19] [%clk 00:02:20]} Nf6 {[%emt 00:00:02] [%clk 00:02:27]} 16.
h3 {[%emt 00:00:02] [%clk 00:02:20]} Be6 {[%emt 00:00:07] [%clk 00:02:22]} 17.
f4 {[%emt 00:00:31] [%clk 00:01:51]} Rb7 {[%emt 00:00:40] [%clk 00:01:45]} 18.
fxe5 {[%emt 00:00:53] [%clk 00:01:00]} dxe5 {[%emt 00:00:02] [%clk 00:01:44]}
19. Nd5 {[%emt 00:00:01] [%clk 00:01:01]} Bxd5 {[%emt 00:00:24] [%clk 00:01:23]}
20. exd5 {[%emt 00:00:01] [%clk 00:01:01]} Rbb8 {[%clk 00:01:24]} 21. Kh2 {[%emt
00:01:07]} Nh7 {[%clk 00:00:40]} 22. Qd3 {[%emt 00:00:16] [%clk 00:00:29]} Bc5
{[%emt 00:00:10] [%clk 00:00:32]} 23. Bd2 {[%emt 00:00:13] [%clk 00:00:18]} b5
{[%emt 00:00:06] [%clk 00:00:29]} 24. axb5 {[%emt 00:00:04] [%clk 00:00:16]}
axb5 {[%clk 00:00:30]} 25. Ra6 {[%emt 00:00:01] [%clk 00:00:17]} Qe7 {[%emt
00:00:06] [%clk 00:00:25]} 26. Bxh6 {[%emt 00:00:05] [%clk 00:00:13]} gxh6
{[%emt 00:00:09] [%clk 00:00:19]} 27. Rxh6 {[%emt 00:00:02] [%clk 00:00:13]} f5
{[%emt 00:00:01] [%clk 00:00:19]} 28. Rxf5 {[%emt 00:00:03] [%clk 00:00:12]}
Rxf5 {[%emt 00:00:07] [%clk 00:00:15]} 29. Qxf5 {[%emt 00:00:01] [%clk
00:00:13]} Rf8 {[%emt 00:00:03] [%clk 00:00:15]} 30. Qh5 {[%emt 00:00:08] [%clk
00:00:06]} Rf6 {[%emt 00:00:04] [%clk 00:00:13]} 31. Qg5+ {[%emt 00:00:03] [%clk
00:00:05]} Qg7 {[%emt 00:00:11] [%clk 00:00:04]} 32. Qxg7+ {[%emt 00:00:01]
[%clk 00:00:05]} Kxg7 {[%clk 00:00:05]} 33. Rh5 {[%emt 00:00:01] [%clk
00:00:06]} Bd6 {[%emt 00:00:02] [%clk 00:00:06]} 34. Be4 {[%emt 00:00:02] [%clk
00:00:06]} Nf8 {[%emt 00:00:02] [%clk 00:00:06]} 35. Rg5+ {[%emt 00:00:02] [%clk
00:00:06]} Kf7 {[%clk 00:00:07]} 36. Bf5 {[%emt 00:00:01] [%clk 00:00:07]} Ke7
{[%clk 00:00:08]} 37. Kg2 {[%emt 00:00:02] [%clk 00:00:08]} Rf7 {[%emt 00:00:02]
[%clk 00:00:08]} 38. g4 {[%emt 00:00:01] [%clk 00:00:08]} Nd7 {[%emt 00:00:01]
[%clk 00:00:09]} 39. Be6 {[%emt 00:00:04] [%clk 00:00:06]} Rh7 {[%emt 00:00:02]
[%clk 00:00:09]} 40. Rg8 {[%emt 00:00:01] [%clk 00:00:06]} Nc5 {[%emt 00:00:02]
[%clk 00:00:10]} 41. Bf5 {[%emt 00:00:02] [%clk 00:00:06]} Rf7 {[%emt 00:00:55]
[%clk 00:00:08]} 42. Ra8 {[%emt 00:00:10] [%clk 00:00:59]} Kf6 {[%emt 00:00:02]
[%clk 00:00:08]} 43. h4 {[%emt 00:00:07] [%clk 00:00:55]} e4 {[%emt 00:00:02]
[%clk 00:00:09]} 44. h5 {[%emt 00:00:06] [%clk 00:00:51]} Ke5 {[%emt 00:00:03]
[%clk 00:00:08]} 45. h6 {[%emt 00:00:02] [%clk 00:00:51]} Be7 {[%emt 00:00:04]
[%clk 00:00:06]} 46. Ra7 {[%emt 00:00:39] [%clk 00:03:02]} Kf6 {[%clk 00:03:02]}
1-0

[Site "Europe Echecs"]

[Event "Championnat d'Europe de Blitz"]
[Date "2024.12.09"]
[White "Stanojoski, Zvonko"]
[Black "Safarli, Eltaj"]
[WhiteElo "2401"]
[BlackElo "2610"]
[Round "8.35"]
[Result "0-1"]
[TimeControl "180+2"]

1. e4 {[%emt 00:00:02] [%clk 00:03:01]} c5 {[%emt 00:00:01] [%clk 00:03:03]} 2.
Nf3 {[%emt 00:00:02] [%clk 00:03:02]} e6 {[%emt 00:00:01] [%clk 00:03:04]} 3. d3
{[%emt 00:00:02] [%clk 00:03:02]} d5 {[%emt 00:00:03] [%clk 00:03:03]} 4. Nbd2
{[%emt 00:00:01] [%clk 00:03:03]} Nc6 {[%emt 00:00:02] [%clk 00:03:03]} 5. g3
{[%emt 00:00:01] [%clk 00:03:04]} Bd6 {[%emt 00:00:11] [%clk 00:02:54]} 6. Bg2
{[%emt 00:00:02] [%clk 00:03:04]} Nge7 {[%emt 00:00:01] [%clk 00:02:55]} 7. O-O
{[%emt 00:00:02] [%clk 00:03:04]} O-O {[%emt 00:00:02] [%clk 00:02:55]} 8. Re1
{[%emt 00:00:13] [%clk 00:02:53]} b6 {[%emt 00:00:01] [%clk 00:02:56]} 9. c3
{[%emt 00:00:06] [%clk 00:02:49]} Ng6 {[%emt 00:00:17] [%clk 00:02:40]} 10. Qa4
{[%emt 00:00:10] [%clk 00:02:42]} Qd7 {[%emt 00:00:31] [%clk 00:02:11]} 11. exd5
{[%emt 00:00:06] [%clk 00:02:38]} exd5 {[%emt 00:00:01] [%clk 00:02:11]} 12. d4
{[%emt 00:00:08] [%clk 00:02:32]} Bb7 {[%emt 00:00:24] [%clk 00:01:49]} 13. Nf1
{[%emt 00:00:17] [%clk 00:02:16]} Rad8 {[%emt 00:00:03] [%clk 00:01:48]} 14.
dxc5 {[%emt 00:00:08] [%clk 00:02:11]} bxc5 {[%emt 00:00:01] [%clk 00:01:49]}
15. Bg5 {[%emt 00:00:06] [%clk 00:02:07]} f6 {[%emt 00:00:03] [%clk 00:01:48]}
16. Be3 {[%emt 00:00:15] [%clk 00:01:54]} Nce5 {[%emt 00:00:02] [%clk 00:01:49]}
17. Qxd7 {[%emt 00:00:05] [%clk 00:01:50]} Rxd7 {[%clk 00:01:50]} 18. Rad1
{[%emt 00:00:39] [%clk 00:01:13]} d4 {[%emt 00:00:02] [%clk 00:01:51]} 19. Nxe5
{[%emt 00:00:01] [%clk 00:01:14]} fxe5 {[%emt 00:00:01] [%clk 00:01:52]} 20.
cxd4 {[%emt 00:00:15] [%clk 00:01:00]} exd4 {[%emt 00:00:12] [%clk 00:01:41]}
21. Bxb7 {[%emt 00:00:10] [%clk 00:00:52]} Rxb7 {[%emt 00:00:02] [%clk
00:01:42]} 22. Bc1 {[%clk 00:00:53]} Ne5 {[%emt 00:00:10] [%clk 00:01:34]} 23.
Kg2 {[%emt 00:00:02] [%clk 00:00:53]} Nf3 {[%emt 00:00:09] [%clk 00:01:27]} 24.
Re6 {[%emt 00:00:02] [%clk 00:00:52]} Bb8 {[%emt 00:00:05] [%clk 00:01:25]} 25.
Nd2 {[%emt 00:00:22] [%clk 00:00:32]} Nxd2 {[%emt 00:00:04] [%clk 00:01:23]} 26.
Rxd2 {[%emt 00:00:01] [%clk 00:00:32]} Rb6 {[%emt 00:00:11] [%clk 00:01:15]} 27.
Re4 {[%emt 00:00:13] [%clk 00:00:21]} a5 {[%emt 00:00:03] [%clk 00:01:13]} 28.
f4 {[%emt 00:00:03] [%clk 00:00:20]} a4 {[%emt 00:00:02] [%clk 00:01:13]} 29.
Rc2 {[%clk 00:00:21]} Bd6 {[%clk 00:01:14]} 30. Rc4 {[%emt 00:00:03] [%clk
00:00:20]} Ra8 {[%emt 00:00:06] [%clk 00:01:10]} 31. Re6 {[%clk 00:00:21]} Kf7
{[%emt 00:00:18] [%clk 00:00:54]} 32. f5 {[%clk 00:00:22]} g6 {[%emt 00:00:23]
[%clk 00:00:33]} 33. g4 {[%clk 00:00:24]} gxf5 {[%emt 00:00:01] [%clk 00:00:34]}
34. gxf5 {[%clk 00:00:25]} Rg8+ {[%emt 00:00:01] [%clk 00:00:35]} 35. Kf3 {[%clk
00:00:26]} Rg1 {[%emt 00:00:04] [%clk 00:00:33]} 36. Rh6 {[%emt 00:00:05] [%clk
00:00:23]} Kg7 {[%emt 00:00:06] [%clk 00:00:29]} 37. f6+ {[%clk 00:00:24]} Kg8
{[%emt 00:00:01] [%clk 00:00:29]} 38. f7+ {[%clk 00:00:26]} Kxf7 {[%clk
00:00:30]} 39. Rxh7+ {[%clk 00:00:27]} Ke6 {[%emt 00:00:01] [%clk 00:00:31]} 40.
Ke4 {[%emt 00:00:05] [%clk 00:00:24]} Re1+ {[%emt 00:00:07] [%clk 00:00:26]} 41.
Kd3 {[%emt 00:00:01] [%clk 00:00:25]} Kd5 {[%emt 00:00:07] [%clk 00:00:21]} 42.
Rh5+ {[%clk 00:00:26]} Kc6 {[%emt 00:00:01] [%clk 00:00:23]} 43. Rh6 {[%emt
00:00:06] [%clk 00:00:22]} Rf1 {[%emt 00:00:06] [%clk 00:00:19]} 44. Kc2 {[%emt
00:00:04] [%clk 00:00:20]} Kd5 {[%emt 00:00:06] [%clk 00:00:15]} 45. Rxa4 {[%emt
00:00:01] [%clk 00:00:21]} d3+ {[%emt 00:00:03] [%clk 00:00:15]} 46. Kxd3 {[%emt
00:00:03] [%clk 00:00:20]} Rxc1 {[%emt 00:00:01] [%clk 00:00:16]} 47. Rh5+
{[%clk 00:00:21]} Kc6 {[%clk 00:00:17]} 48. b3 {[%emt 00:00:01] [%clk 00:00:22]}
Rd1+ {[%emt 00:00:05] [%clk 00:00:14]} 49. Kc2 {[%emt 00:00:01] [%clk 00:00:23]}
Rh1 {[%emt 00:00:03]} 50. h4 {[%clk 00:00:25]} Rh2+ {[%clk 00:00:14]} 51. Kd3
{[%clk 00:00:26]} Rh3+ {[%emt 00:00:03] [%clk 00:00:12]} 52. Kc4 {[%emt
00:00:07] [%clk 00:00:21]} Rb4+ {[%emt 00:00:01] [%clk 00:00:13]} 53. Rxb4
{[%clk 00:00:22]} cxb4 {[%emt 00:00:01] [%clk 00:00:14]} 54. Rh6 {[%emt
00:00:02] [%clk 00:00:23]} Rh2 {[%emt 00:00:01] [%clk 00:00:14]} 55. h5 {[%emt
00:00:03] [%clk 00:00:21]} Rxa2 {[%emt 00:00:01] [%clk 00:00:15]} 56. Rh8 {[%clk
00:00:22]} Rc2+ {[%emt 00:00:04] [%clk 00:00:14]} 57. Kd4 {[%clk 00:00:24]} Bc5+
{[%emt 00:00:02] [%clk 00:00:14]} 58. Ke4 {[%emt 00:00:02] [%clk 00:00:24]} Re2+
{[%emt 00:00:02] [%clk 00:00:15]} 59. Kf5 {[%emt 00:00:02] [%clk 00:00:23]} Bd4
{[%emt 00:00:03] [%clk 00:00:14]} 60. Rd8 {[%clk 00:00:24]} Kc5 {[%emt 00:00:03]
[%clk 00:00:14]} 61. h6 {[%clk 00:00:24]} Re3 {[%emt 00:00:02] [%clk 00:00:13]}
62. Rc8+ {[%emt 00:00:03] [%clk 00:00:24]} Kb5 {[%emt 00:00:02] [%clk 00:00:14]}
63. Rb8+ {[%emt 00:00:01] [%clk 00:00:24]} Kc5 {[%emt 00:00:02] [%clk 00:00:13]}
64. Rc8+ {[%clk 00:00:26]} Kb6 {[%emt 00:00:10] [%clk 00:00:06]} 65. Rb8+ {[%emt
00:00:02] [%clk 00:00:26]} Kc7 {[%emt 00:00:02] [%clk 00:00:05]} 66. Rxb4 {[%clk
00:00:27]} Bb2 {[%emt 00:00:01] [%clk 00:00:06]} 67. Rh4 {[%emt 00:00:04] [%clk
00:00:25]} Kd6 {[%emt 00:00:02] [%clk 00:00:06]} 68. h7 {[%clk 00:00:26]} Bh8
{[%clk 00:00:08]} 69. b4 {[%clk 00:00:27]} Re5+ {[%emt 00:00:01] [%clk
00:00:08]} 70. Kg6 {[%emt 00:00:01] [%clk 00:00:28]} Ke6 {[%emt 00:00:02] [%clk
00:00:08]} 71. Rh1 {[%emt 00:00:02] [%clk 00:00:28]} Re2 {[%emt 00:00:02] [%clk
00:00:09]} 72. Kg5 {[%emt 00:00:03] [%clk 00:00:27]} Rg2+ {[%emt 00:00:03] [%clk
00:00:08]} 73. Kf4 {[%emt 00:00:01] [%clk 00:00:29]} Rb2 {[%clk 00:00:09]} 74.
Re1+ {[%emt 00:00:08] [%clk 00:00:22]} Kf6 {[%emt 00:00:07] [%clk 00:00:05]} 75.
Rg1 {[%clk 00:00:24]} Rxb4+ {[%emt 00:00:02] [%clk 00:00:06]} 76. Ke3 {[%clk
00:00:25]} Rh4 {[%emt 00:00:01] [%clk 00:00:06]} 77. Kf3 {[%emt 00:00:01] [%clk
00:00:26]} Kf5 {[%emt 00:00:02] [%clk 00:00:06]} 78. Rb1 {[%emt 00:00:03] [%clk
00:00:25]} Rh3+ {[%emt 00:00:02] [%clk 00:00:07]} 79. Kg2 {[%clk 00:00:26]} Rxh7
{[%clk 00:00:08]} 80. Rb5+ {[%clk 00:00:28]} Be5 {[%clk 00:00:09]} 81. Kf3
{[%clk 00:00:29]} Rh3+ {[%emt 00:00:01] [%clk 00:00:10]} 82. Ke2 {[%clk
00:00:31]} Ke4 {[%emt 00:00:01] [%clk 00:00:11]} 83. Kd2 {[%emt 00:00:02] [%clk
00:00:30]} Rh2+ {[%clk 00:00:12]} 84. Kc1 {[%clk 00:00:32]} Bc3 {[%emt 00:00:03]
[%clk 00:00:12]} 85. Rb8 {[%emt 00:00:11] [%clk 00:00:22]} Kd3 {[%emt 00:00:01]
[%clk 00:00:13]} 86. Rd8+ {[%emt 00:00:02] [%clk 00:00:21]} Bd4 {[%emt 00:00:03]
[%clk 00:00:14]} 87. Kb1 {[%clk 00:00:22]} Rb2+ {[%emt 00:00:01] [%clk
00:00:14]} 88. Kc1 {[%clk 00:00:24]} Rb7 {[%emt 00:00:06] [%clk 00:00:10]} 89.
Rd6 {[%emt 00:00:10] [%clk 00:00:16]} Ra7 {[%emt 00:00:03] [%clk 00:00:09]} 0-1

[Site "Europe Echecs"]

[Event "Championnat d'Europe de Blitz"]
[Date "2024.12.09"]
[White "Alonso Rosell, Alvar"]
[Black "Domalchuk-Jonasson, Aleksandr"]
[WhiteElo "2532"]
[BlackElo "2377"]
[Round "8.36"]
[Result "1-0"]
[TimeControl "180+2"]

1. d4 {[%clk 00:03:03]} Nf6 {[%emt 00:00:02] [%clk 00:03:03]} 2. Nf3 {[%emt
00:00:01] [%clk 00:03:04]} e6 {[%emt 00:00:03] [%clk 00:03:02]} 3. e3 {[%clk
00:03:05]} c5 {[%emt 00:00:07] [%clk 00:02:57]} 4. Bd3 {[%emt 00:00:02] [%clk
00:03:05]} Nc6 {[%emt 00:00:01] [%clk 00:02:58]} 5. b3 {[%emt 00:00:05] [%clk
00:03:03]} cxd4 {[%emt 00:00:05] [%clk 00:02:56]} 6. exd4 {[%emt 00:00:01] [%clk
00:03:04]} d5 {[%clk 00:02:57]} 7. Bb2 {[%emt 00:00:05] [%clk 00:03:01]} Bd6
{[%emt 00:00:01] [%clk 00:02:57]} 8. Nbd2 {[%emt 00:00:02] [%clk 00:03:01]} O-O
{[%emt 00:00:08] [%clk 00:02:52]} 9. a3 {[%emt 00:00:01] [%clk 00:03:02]} Qc7
{[%emt 00:00:15] [%clk 00:02:39]} 10. Qe2 {[%emt 00:00:03] [%clk 00:03:01]} a5
{[%emt 00:00:22] [%clk 00:02:18]} 11. h4 {[%emt 00:00:11] [%clk 00:02:52]} Re8
{[%emt 00:00:25] [%clk 00:01:56]} 12. Ne5 {[%emt 00:00:03] [%clk 00:02:51]} Nd7
{[%emt 00:00:28] [%clk 00:01:30]} 13. Bxh7+ {[%emt 00:00:03] [%clk 00:02:50]}
Kf8 {[%emt 00:00:20] [%clk 00:01:12]} 14. f4 {[%emt 00:00:10] [%clk 00:02:41]}
f5 {[%emt 00:00:22] [%clk 00:00:53]} 15. Bg6 {[%emt 00:00:28] [%clk 00:02:15]}
Rd8 {[%emt 00:00:17] [%clk 00:00:38]} 16. Qh5 {[%emt 00:00:05] [%clk 00:02:12]}
Nf6 {[%clk 00:00:40]} 17. Qh8+ {[%emt 00:00:19] [%clk 00:01:56]} Ng8 {[%emt
00:00:01] [%clk 00:00:41]} 18. Ndf3 {[%emt 00:00:29] [%clk 00:01:29]} Bxe5
{[%emt 00:00:19] [%clk 00:00:24]} 19. fxe5 {[%emt 00:00:05] [%clk 00:01:25]}
Nce7 {[%emt 00:00:05] [%clk 00:00:21]} 20. h5 {[%emt 00:00:21] [%clk 00:01:07]}
Qxc2 {[%emt 00:00:15] [%clk 00:00:08]} 21. Ng5 {[%emt 00:00:08] [%clk 00:01:01]}
Nxg6 {[%emt 00:00:01] [%clk 00:00:09]} 22. hxg6 {[%emt 00:00:10] [%clk
00:00:52]} Qxb2 {[%emt 00:00:06] [%clk 00:00:05]} 23. Nh7+ {[%emt 00:00:26]
[%clk 00:00:28]} Ke8 {[%clk 00:00:07]} 24. Qxg8+ {[%emt 00:00:13] [%clk
00:00:17]} Kd7 {[%clk 00:00:08]} 25. Qxg7+ {[%emt 00:00:08] [%clk 00:00:11]} Kc6
{[%emt 00:00:03] [%clk 00:00:07]} 26. Rd1 {[%emt 00:00:02] [%clk 00:00:11]} Qxg2
{[%emt 00:00:04] [%clk 00:00:05]} 27. Rc1+ {[%emt 00:00:06] [%clk 00:00:08]} Kb5
{[%emt 00:00:01] [%clk 00:00:05]} 28. a4+ {[%emt 00:00:03] [%clk 00:00:07]} Ka6
{[%emt 00:00:01] [%clk 00:00:06]} 29. Qh6 {[%emt 00:00:02] [%clk 00:00:07]} Qg3+
{[%emt 00:00:04] [%clk 00:00:04]} 30. Kd1 {[%emt 00:00:03] [%clk 00:00:05]}
Qxb3+ {[%emt 00:00:02] [%clk 00:00:04]} 31. Rc2 {[%emt 00:00:03] [%clk
00:00:05]} Bd7 {[%emt 00:00:02] [%clk 00:00:04]} 32. Rh3 {[%emt 00:00:02] [%clk
00:00:04]} Qb1+ {[%emt 00:00:03] [%clk 00:00:04]} 33. Qc1 {[%emt 00:00:01] [%clk
00:00:05]} Qxc1+ {[%emt 00:00:03] [%clk 00:00:03]} 34. Rxc1 {[%clk 00:00:06]}
Bxa4+ {[%emt 00:00:01]} 35. Ke1 {[%clk 00:00:07]} Rg8 {[%clk 00:00:05]} 36. Rg3
{[%emt 00:00:03] [%clk 00:00:07]} Rg7 {[%emt 00:00:01] [%clk 00:00:06]} 37. Nf6
{[%emt 00:00:03] [%clk 00:00:06]} Be8 {[%emt 00:00:03] [%clk 00:00:05]} 38. Kf2
{[%emt 00:00:04] [%clk 00:00:03]} a4 {[%emt 00:00:03] [%clk 00:00:05]} 39. Rcg1
{[%emt 00:00:05] [%clk 00:00:03]} b5 {[%clk 00:00:06]} 40. Ra3 {[%emt 00:00:02]
[%clk 00:00:04]} 1-0

[Site "Europe Echecs"]

[Event "Championnat d'Europe de Blitz"]
[Date "2024.12.09"]
[White "Diermair, Andreas"]
[Black "Kozul, Zdenko"]
[WhiteElo "2433"]
[BlackElo "2519"]
[Round "8.37"]
[Result "1-0"]
[TimeControl "180+2"]

1. c4 {[%emt 00:00:02] [%clk 00:03:02]} Nf6 {[%emt 00:00:02] [%clk 00:03:03]} 2.
d4 {[%emt 00:00:01] [%clk 00:03:03]} g6 {[%emt 00:00:02] [%clk 00:03:04]} 3. g3
{[%emt 00:00:01] [%clk 00:03:03]} c6 {[%emt 00:00:01] [%clk 00:03:05]} 4. Bg2
{[%emt 00:00:02] [%clk 00:03:03]} d5 {[%clk 00:03:06]} 5. Nf3 {[%emt 00:00:03]
[%clk 00:03:03]} Bg7 {[%clk 00:03:07]} 6. O-O {[%emt 00:00:02] [%clk 00:03:03]}
O-O {[%emt 00:00:01] [%clk 00:03:08]} 7. b3 {[%clk 00:03:04]} Bf5 {[%emt
00:00:09] [%clk 00:03:01]} 8. Bb2 {[%emt 00:00:01] [%clk 00:03:04]} Nbd7 {[%emt
00:00:07] [%clk 00:02:56]} 9. e3 {[%emt 00:00:02] [%clk 00:03:04]} e6 {[%emt
00:00:06] [%clk 00:02:53]} 10. Qe2 {[%emt 00:00:09] [%clk 00:02:57]} a5 {[%emt
00:00:02] [%clk 00:02:53]} 11. Nc3 {[%emt 00:00:02] [%clk 00:02:57]} Ne4 {[%emt
00:00:06] [%clk 00:02:49]} 12. Nh4 {[%emt 00:00:10] [%clk 00:02:49]} Nd6 {[%emt
00:00:14] [%clk 00:02:37]} 13. Rac1 {[%emt 00:00:07] [%clk 00:02:44]} Re8 {[%emt
00:00:27] [%clk 00:02:13]} 14. Ba3 {[%emt 00:00:06] [%clk 00:02:40]} Nf6 {[%emt
00:00:23] [%clk 00:01:52]} 15. Rfd1 {[%emt 00:00:28] [%clk 00:02:14]} Nfe4
{[%emt 00:00:32] [%clk 00:01:23]} 16. Nxe4 {[%emt 00:00:16] [%clk 00:02:00]}
dxe4 {[%emt 00:00:08] [%clk 00:01:17]} 17. d5 {[%emt 00:00:18] [%clk 00:01:44]}
exd5 {[%emt 00:00:47] [%clk 00:00:33]} 18. Bxd6 {[%emt 00:00:21] [%clk
00:01:24]} Qxd6 {[%clk 00:00:33]} 19. Nxf5 {[%emt 00:00:02] [%clk 00:01:25]}
gxf5 {[%emt 00:00:01] [%clk 00:00:34]} 20. cxd5 {[%emt 00:00:03] [%clk
00:01:24]} cxd5 {[%emt 00:00:04] [%clk 00:00:32]} 21. Qb5 {[%emt 00:00:13] [%clk
00:01:13]} Red8 {[%emt 00:00:15] [%clk 00:00:19]} 22. Bh3 {[%emt 00:00:08] [%clk
00:01:06]} Qe6 {[%emt 00:00:22] [%clk 00:00:00]} 1-0

[Site "Europe Echecs"]